[Event "Titled Tuesday Blitz August 15 Early 2023"]
[White "rionelG"]
[Black "Prohaszka, Peter"]
[BlackFideId "726265"]
[WhiteElo "2345"]
[BlackElo "2695"]
[Result "1-0"]
[Round "7"]
[TimeControl "180+1"]
[Date "2023.08.15"]
[WhiteClock "0:01:12"]
[BlackClock "0:00:00"]
[Board "60"]

1. e4 {[%clk 0:02:59]}  c5 {[%clk 0:02:58]} 2. g3 {[%clk 0:02:59]}  g6 {[%clk 0:02:57]} 3. Bg2 {[%clk 0:02:59]}  Bg7 {[%clk 0:02:58]} 4. Ne2 {[%clk 0:02:59]}  Nc6 {[%clk 0:02:58]} 5. c3 {[%clk 0:03:00]}  d6 {[%clk 0:02:40]} 6. d4 {[%clk 0:02:59]}  cxd4 {[%clk 0:02:39]} 7. cxd4 {[%clk 0:03:00]}  Qb6 {[%clk 0:02:40]} 8. Be3 {[%clk 0:02:56]}  Qxb2 {[%clk 0:02:40]} 9. Nd2 {[%clk 0:02:55]}  Nxd4 {[%clk 0:02:40]} 10. Bxd4 {[%clk 0:02:54]}  Bxd4 {[%clk 0:02:39]} 11. Qa4+ {[%clk 0:02:54]}  Bd7 {[%clk 0:02:35]} 12. Qxd4 {[%clk 0:02:54]}  Qxd4 {[%clk 0:02:36]} 13. Nxd4 {[%clk 0:02:54]}  Nf6 {[%clk 0:02:37]} 14. O-O {[%clk 0:02:51]}  O-O {[%clk 0:02:36]} 15. Rfc1 {[%clk 0:02:50]}  Rfc8 {[%clk 0:02:24]} 16. N2b3 {[%clk 0:02:49]}  a5 {[%clk 0:02:00]} 17. Rxc8+ {[%clk 0:02:47]}  Bxc8 {[%clk 0:02:00]} 18. a4 {[%clk 0:02:40]}  Nd7 {[%clk 0:02:00]} 19. Bf1 {[%clk 0:02:34]}  Ne5 {[%clk 0:01:49]} 20. Bb5 {[%clk 0:02:30]}  g5 {[%clk 0:01:31]} 21. f3 {[%clk 0:02:27]}  Be6 {[%clk 0:01:20]} 22. Kf2 {[%clk 0:02:23]}  Bc4 {[%clk 0:01:11]} 23. Bxc4 {[%clk 0:02:18]}  Nxc4 {[%clk 0:01:10]} 24. Rb1 {[%clk 0:02:06]}  e6 {[%clk 0:00:47]} 25. Nb5 {[%clk 0:01:59]}  Ra6 {[%clk 0:00:39]} 26. Ke2 {[%clk 0:01:48]}  Nb6 {[%clk 0:00:37]} 27. Nc3 {[%clk 0:01:43]}  Kf8 {[%clk 0:00:28]} 28. Nd4 {[%clk 0:01:43]}  Ke7 {[%clk 0:00:24]} 29. Rb5 {[%clk 0:01:40]}  h6 {[%clk 0:00:24]} 30. Nb3 {[%clk 0:01:39]}  Nc4 {[%clk 0:00:21]} 31. Rxb7+ {[%clk 0:01:36]}  Kf6 {[%clk 0:00:20]} 32. Nb5 {[%clk 0:01:30]}  Rc6 {[%clk 0:00:18]} 33. Rc7 {[%clk 0:01:28]}  Rxc7 {[%clk 0:00:15]} 34. Nxc7 {[%clk 0:01:29]}  Nb6 {[%clk 0:00:12]} 35. Nxa5 {[%clk 0:01:26]}  Nxa4 {[%clk 0:00:12]} 36. Nb5 {[%clk 0:01:26]}  Ke7 {[%clk 0:00:11]} 37. Nc4 {[%clk 0:01:21]}  d5 {[%clk 0:00:05]} 38. exd5 {[%clk 0:01:22]}  exd5 {[%clk 0:00:05]} 39. Ne3 {[%clk 0:01:22]}  Nb6 {[%clk 0:00:02]} 40. Kd3 {[%clk 0:01:20]}  Ke6 {[%clk 0:00:02]} 41. Kd4 {[%clk 0:01:20]}  h5 {[%clk 0:00:02]} 42. Nc3 {[%clk 0:01:19]}  Nd7 {[%clk 0:00:02]} 43. Ncxd5 {[%clk 0:01:17]}  Ne5 {[%clk 0:00:02]} 44. Ke4 {[%clk 0:01:17]}  Ng6 {[%clk 0:00:01]} 45. f4 {[%clk 0:01:14]}  gxf4 {[%clk 0:00:01]} 46. gxf4 {[%clk 0:01:15]}  Nf8 {[%clk 0:00:01]} 47. f5+ {[%clk 0:01:15]}  Kd6 {[%clk 0:00:02]} 48. Nf6 {[%clk 0:01:15]}  Ke7 {[%clk 0:00:01]} 49. Ke5 {[%clk 0:01:14]}  h4 {[%clk 0:00:01]} 50. Ned5+ {[%clk 0:01:12]}  Kd8 {[%clk 0:00:02]} 51. Kf4 {[%clk 0:01:11]}  h3 {[%clk 0:00:00]} 52. Kg3 {[%clk 0:01:12]} 1-0


[Site "https://www.chess.com"]

[Event "Titled Tuesday Blitz August 15 Early 2023"]
[White "Guliyev, Namig"]
[Black "EvgenyBurmakin"]
[WhiteFideId "13400363"]
[WhiteElo "2762"]
[BlackElo "2292"]
[Result "1-0"]
[Round "7"]
[TimeControl "180+1"]
[Date "2023.08.15"]
[WhiteClock "0:01:01"]
[BlackClock "0:00:03"]
[Board "62"]

1. d4 {[%clk 0:02:50]}  Nf6 {[%clk 0:02:58]} 2. Nf3 {[%clk 0:02:48]}  g6 {[%clk 0:02:58]} 3. c4 {[%clk 0:02:48]}  Bg7 {[%clk 0:02:59]} 4. Nc3 {[%clk 0:02:48]}  O-O {[%clk 0:02:59]} 5. g3 {[%clk 0:02:49]}  d6 {[%clk 0:03:00]} 6. Bg2 {[%clk 0:02:50]}  Nbd7 {[%clk 0:02:54]} 7. O-O {[%clk 0:02:51]}  e5 {[%clk 0:02:54]} 8. e4 {[%clk 0:02:50]}  c6 {[%clk 0:02:50]} 9. Re1 {[%clk 0:02:50]}  Re8 {[%clk 0:02:47]} 10. h3 {[%clk 0:02:50]}  a6 {[%clk 0:02:28]} 11. d5 {[%clk 0:02:45]}  c5 {[%clk 0:02:19]} 12. a4 {[%clk 0:02:43]}  b6 {[%clk 0:02:11]} 13. a5 {[%clk 0:02:43]}  bxa5 {[%clk 0:02:00]} 14. Qa4 {[%clk 0:02:43]}  Rb8 {[%clk 0:01:57]} 15. Qxa5 {[%clk 0:02:42]}  Rb4 {[%clk 0:01:50]} 16. Bf1 {[%clk 0:02:37]}  Qxa5 {[%clk 0:01:40]} 17. Rxa5 {[%clk 0:02:36]}  Nb6 {[%clk 0:01:31]} 18. Na2 {[%clk 0:02:07]}  Nxc4 {[%clk 0:01:15]} 19. Nxb4 {[%clk 0:02:07]}  Nxa5 {[%clk 0:01:14]} 20. Nxa6 {[%clk 0:02:06]}  Bxa6 {[%clk 0:00:57]} 21. Bxa6 {[%clk 0:02:06]}  Rb8 {[%clk 0:00:56]} 22. Nd2 {[%clk 0:02:02]}  Bh6 {[%clk 0:00:54]} 23. f3 {[%clk 0:01:55]}  Rb6 {[%clk 0:00:40]} 24. Bf1 {[%clk 0:01:54]}  Kg7 {[%clk 0:00:27]} 25. Re2 {[%clk 0:01:50]}  Nh5 {[%clk 0:00:21]} 26. Kf2 {[%clk 0:01:49]}  f5 {[%clk 0:00:21]} 27. Bg2 {[%clk 0:01:23]}  fxe4 {[%clk 0:00:13]} 28. fxe4 {[%clk 0:01:21]}  Rb7 {[%clk 0:00:12]} 29. Bf3 {[%clk 0:01:21]}  Nf6 {[%clk 0:00:10]} 30. h4 {[%clk 0:01:17]}  Nd7 {[%clk 0:00:09]} 31. Ke1 {[%clk 0:01:14]}  Nb8 {[%clk 0:00:08]} 32. Kd1 {[%clk 0:01:14]}  Na6 {[%clk 0:00:09]} 33. Re1 {[%clk 0:01:07]}  Nb4 {[%clk 0:00:08]} 34. Be2 {[%clk 0:01:07]}  Na2 {[%clk 0:00:07]} 35. Kc2 {[%clk 0:01:05]}  Nxc1 {[%clk 0:00:07]} 36. Rxc1 {[%clk 0:01:03]}  Bxd2 {[%clk 0:00:06]} 37. Kxd2 {[%clk 0:01:04]}  Rxb2+ {[%clk 0:00:06]} 38. Ke3 {[%clk 0:01:03]}  Nb3 {[%clk 0:00:05]} 39. Ra1 {[%clk 0:01:01]}  Nd4 {[%clk 0:00:06]} 40. Ra7+ {[%clk 0:01:02]}  Kh6 {[%clk 0:00:04]} 41. Bd1 {[%clk 0:01:01]}  Rg2 {[%clk 0:00:04]} 42. g4 {[%clk 0:01:01]}  Rg3+ {[%clk 0:00:04]} 43. Kf2 {[%clk 0:01:00]}  Rh3 {[%clk 0:00:03]} 44. g5# {[%clk 0:01:01]} 1-0


[Site "https://www.chess.com"]

[Event "Titled Tuesday Blitz August 15 Early 2023"]
[White "Thecourseoisildur"]
[Black "Weetik, Vjacheslav"]
[BlackFideId "4153472"]
[WhiteElo "2552"]
[BlackElo "2733"]
[Result "1-0"]
[Round "7"]
[TimeControl "180+1"]
[Date "2023.08.15"]
[WhiteClock "0:00:02"]
[BlackClock "0:00:00"]
[Board "63"]

1. d4 {[%clk 0:03:00]}  Nf6 {[%clk 0:02:59]} 2. c4 {[%clk 0:02:59]}  g6 {[%clk 0:02:59]} 3. Nc3 {[%clk 0:02:59]}  Bg7 {[%clk 0:03:00]} 4. e4 {[%clk 0:02:58]}  d6 {[%clk 0:03:01]} 5. Be2 {[%clk 0:02:59]}  O-O {[%clk 0:03:00]} 6. h4 {[%clk 0:02:59]}  c5 {[%clk 0:02:46]} 7. d5 {[%clk 0:02:59]}  e6 {[%clk 0:02:47]} 8. h5 {[%clk 0:02:58]}  exd5 {[%clk 0:02:47]} 9. exd5 {[%clk 0:02:59]}  Re8 {[%clk 0:02:47]} 10. h6 {[%clk 0:02:59]}  Bh8 {[%clk 0:02:30]} 11. Kf1 {[%clk 0:02:57]}  a6 {[%clk 0:02:25]} 12. Bg5 {[%clk 0:02:53]}  Nbd7 {[%clk 0:02:17]} 13. Nf3 {[%clk 0:02:47]}  b5 {[%clk 0:02:12]} 14. cxb5 {[%clk 0:02:45]}  axb5 {[%clk 0:02:12]} 15. Bxb5 {[%clk 0:02:43]}  Qb6 {[%clk 0:02:00]} 16. a4 {[%clk 0:02:38]}  Ba6 {[%clk 0:01:59]} 17. Qd3 {[%clk 0:02:28]}  Ng4 {[%clk 0:01:44]} 18. a5 {[%clk 0:01:54]}  Qb7 {[%clk 0:01:29]} 19. Bxa6 {[%clk 0:01:43]}  Rxa6 {[%clk 0:01:28]} 20. Qb5 {[%clk 0:01:37]}  Qa7 {[%clk 0:01:00]} 21. Rh4 {[%clk 0:01:25]}  Rb8 {[%clk 0:00:58]} 22. Qe2 {[%clk 0:00:22]}  Nge5 {[%clk 0:00:58]} 23. Nxe5 {[%clk 0:00:20]}  Bxe5 {[%clk 0:00:58]} 24. f4 {[%clk 0:00:10]}  Bd4 {[%clk 0:00:19]} 25. Ne4 {[%clk 0:00:04]}  Rxa5 {[%clk 0:00:07]} 26. Rb1 {[%clk 0:00:04]}  Ra2 {[%clk 0:00:06]} 27. Nxd6 {[%clk 0:00:03]}  Raxb2 {[%clk 0:00:06]} 28. Rxb2 {[%clk 0:00:02]}  Qa1+ {[%clk 0:00:06]} 29. Qe1 {[%clk 0:00:02]}  Qxb2 {[%clk 0:00:07]} 30. Rh3 {[%clk 0:00:02]}  Rf8 {[%clk 0:00:03]} 31. Rf3 {[%clk 0:00:02]}  Qc2 {[%clk 0:00:02]} 32. Bh4 {[%clk 0:00:02]}  c4 {[%clk 0:00:02]} 33. Bf2 {[%clk 0:00:02]}  Bxf2 {[%clk 0:00:02]} 34. Rxf2 {[%clk 0:00:03]}  Qb3 {[%clk 0:00:01]} 35. Rf3 {[%clk 0:00:02]}  Qa4 {[%clk 0:00:01]} 36. Rc3 {[%clk 0:00:02]}  Nf6 {[%clk 0:00:01]} 37. Rxc4 {[%clk 0:00:01]}  Qa5 {[%clk 0:00:01]} 38. Qxa5 {[%clk 0:00:01]}  Nxd5 {[%clk 0:00:01]} 39. Qc3 {[%clk 0:00:02]}  Ne3+ {[%clk 0:00:00]} 40. Qxe3 {[%clk 0:00:02]} 1-0


[Site "https://www.chess.com"]

[Event "Titled Tuesday Blitz August 15 Early 2023"]
[White "Shyam, Sundar M."]
[Black "Grossboss19"]
[WhiteFideId "5019141"]
[WhiteElo "2698"]
[BlackElo "2546"]
[Result "1-0"]
[Round "7"]
[TimeControl "180+1"]
[Date "2023.08.15"]
[WhiteClock "0:00:02"]
[BlackClock "0:00:00"]
[Board "65"]

1. d4 {[%clk 0:03:00]}  Nf6 {[%clk 0:02:58]} 2. Bf4 {[%clk 0:02:57]}  d5 {[%clk 0:02:56]} 3. e3 {[%clk 0:02:55]}  c5 {[%clk 0:02:56]} 4. c3 {[%clk 0:02:51]}  Nc6 {[%clk 0:02:55]} 5. Nd2 {[%clk 0:02:51]}  e6 {[%clk 0:02:51]} 6. Ngf3 {[%clk 0:02:49]}  Nh5 {[%clk 0:02:39]} 7. Bb5 {[%clk 0:02:48]}  Nxf4 {[%clk 0:02:37]} 8. exf4 {[%clk 0:02:49]}  Bd7 {[%clk 0:02:25]} 9. O-O {[%clk 0:02:43]}  Bd6 {[%clk 0:02:21]} 10. Bxc6 {[%clk 0:02:40]}  Bxc6 {[%clk 0:02:19]} 11. Ne5 {[%clk 0:02:40]}  O-O {[%clk 0:02:18]} 12. Re1 {[%clk 0:02:40]}  Rc8 {[%clk 0:02:13]} 13. Ndf3 {[%clk 0:02:39]}  cxd4 {[%clk 0:01:55]} 14. Nxd4 {[%clk 0:02:16]}  Bd7 {[%clk 0:01:47]} 15. Qd2 {[%clk 0:02:08]}  Re8 {[%clk 0:01:43]} 16. Rad1 {[%clk 0:01:51]}  f6 {[%clk 0:01:29]} 17. Nxd7 {[%clk 0:01:21]}  Qxd7 {[%clk 0:01:30]} 18. g3 {[%clk 0:01:18]}  Bc5 {[%clk 0:01:18]} 19. Re2 {[%clk 0:01:11]}  Re7 {[%clk 0:01:05]} 20. Rde1 {[%clk 0:01:09]}  Rce8 {[%clk 0:01:04]} 21. Nb3 {[%clk 0:01:09]}  Bb6 {[%clk 0:01:02]} 22. Kg2 {[%clk 0:01:09]}  Qa4 {[%clk 0:00:44]} 23. f5 {[%clk 0:00:55]}  Qxa2 {[%clk 0:00:43]} 24. Rxe6 {[%clk 0:00:54]}  Rxe6 {[%clk 0:00:32]} 25. Qxd5 {[%clk 0:00:54]}  Qxb2 {[%clk 0:00:29]} 26. Nd4 {[%clk 0:00:47]}  Bxd4 {[%clk 0:00:26]} 27. cxd4 {[%clk 0:00:48]}  Qb6 {[%clk 0:00:20]} 28. fxe6 {[%clk 0:00:29]}  Qc6 {[%clk 0:00:20]} 29. Qf3 {[%clk 0:00:26]}  Kf8 {[%clk 0:00:17]} 30. d5 {[%clk 0:00:26]}  Qd6 {[%clk 0:00:17]} 31. Rb1 {[%clk 0:00:24]}  b6 {[%clk 0:00:15]} 32. h4 {[%clk 0:00:22]}  Rd8 {[%clk 0:00:15]} 33. Rd1 {[%clk 0:00:20]}  Qe5 {[%clk 0:00:14]} 34. Qa3+ {[%clk 0:00:17]}  Kg8 {[%clk 0:00:12]} 35. Qd3 {[%clk 0:00:17]}  g6 {[%clk 0:00:11]} 36. Qf3 {[%clk 0:00:14]}  Kg7 {[%clk 0:00:11]} 37. Rd3 {[%clk 0:00:14]}  Qd6 {[%clk 0:00:10]} 38. Re3 {[%clk 0:00:13]}  Qe7 {[%clk 0:00:09]} 39. Qe4 {[%clk 0:00:12]}  Qd6 {[%clk 0:00:07]} 40. h5 {[%clk 0:00:12]}  f5 {[%clk 0:00:04]} 41. Qf3 {[%clk 0:00:09]}  Re8 {[%clk 0:00:03]} 42. Rd3 {[%clk 0:00:06]}  Rd8 {[%clk 0:00:03]} 43. Qe3 {[%clk 0:00:06]}  Re8 {[%clk 0:00:03]} 44. h6+ {[%clk 0:00:07]}  Kg8 {[%clk 0:00:03]} 45. Qd4 {[%clk 0:00:06]}  Qe7 {[%clk 0:00:02]} 46. d6 {[%clk 0:00:06]}  Qb7+ {[%clk 0:00:02]} 47. Kg1 {[%clk 0:00:05]}  Rxe6 {[%clk 0:00:02]} 48. Rd1 {[%clk 0:00:02]}  Qd7 {[%clk 0:00:01]} 49. Qd5 {[%clk 0:00:02]}  Kf8 {[%clk 0:00:01]} 50. Qd4 {[%clk 0:00:02]}  Kg8 {[%clk 0:00:01]} 51. Kh1 {[%clk 0:00:02]}  Re8 {[%clk 0:00:00]} 52. Kh2 {[%clk 0:00:02]} 1-0


[Site "https://www.chess.com"]

[Event "Titled Tuesday Blitz August 15 Early 2023"]
[White "Skvortsov, Andrei"]
[Black "Gontcharov, Vladislav"]
[WhiteFideId "24108600"]
[BlackFideId "4123492"]
[WhiteElo "2690"]
[BlackElo "2544"]
[Result "1-0"]
[Round "7"]
[TimeControl "180+1"]
[Date "2023.08.15"]
[WhiteClock "0:01:00"]
[BlackClock "0:00:07"]
[Board "67"]

1. e4 {[%clk 0:03:00]}  e6 {[%clk 0:02:59]} 2. d4 {[%clk 0:03:00]}  d5 {[%clk 0:03:00]} 3. exd5 {[%clk 0:03:01]}  exd5 {[%clk 0:03:00]} 4. Nf3 {[%clk 0:03:02]}  Nc6 {[%clk 0:03:00]} 5. Bb5 {[%clk 0:03:01]}  Bd6 {[%clk 0:02:59]} 6. c4 {[%clk 0:03:00]}  dxc4 {[%clk 0:02:59]} 7. d5 {[%clk 0:02:58]}  a6 {[%clk 0:02:58]} 8. Ba4 {[%clk 0:02:57]}  b5 {[%clk 0:02:58]} 9. dxc6 {[%clk 0:02:58]}  bxa4 {[%clk 0:02:57]} 10. O-O {[%clk 0:02:58]}  Ne7 {[%clk 0:02:53]} 11. Qxa4 {[%clk 0:02:56]}  Bf5 {[%clk 0:02:51]} 12. Re1 {[%clk 0:02:35]}  O-O {[%clk 0:02:33]} 13. Qxc4 {[%clk 0:02:32]}  Rb8 {[%clk 0:02:32]} 14. a3 {[%clk 0:02:21]}  a5 {[%clk 0:02:08]} 15. Nc3 {[%clk 0:02:21]}  Bd3 {[%clk 0:02:03]} 16. Qa4 {[%clk 0:02:14]}  Qc8 {[%clk 0:01:44]} 17. Qxa5 {[%clk 0:02:08]}  Nxc6 {[%clk 0:01:25]} 18. Qd5 {[%clk 0:02:02]}  Qd7 {[%clk 0:01:25]} 19. g3 {[%clk 0:01:39]}  Bf5 {[%clk 0:01:13]} 20. b4 {[%clk 0:01:38]}  Ne7 {[%clk 0:01:10]} 21. Qc4 {[%clk 0:01:35]}  Be6 {[%clk 0:00:58]} 22. Qd4 {[%clk 0:01:22]}  Qc6 {[%clk 0:00:54]} 23. Ne4 {[%clk 0:01:15]}  Nf5 {[%clk 0:00:53]} 24. Qc3 {[%clk 0:01:11]}  Qxc3 {[%clk 0:00:44]} 25. Nxc3 {[%clk 0:01:11]}  c5 {[%clk 0:00:44]} 26. b5 {[%clk 0:01:09]}  Nd4 {[%clk 0:00:43]} 27. Nxd4 {[%clk 0:01:07]}  cxd4 {[%clk 0:00:43]} 28. Ne4 {[%clk 0:01:08]}  Be7 {[%clk 0:00:35]} 29. a4 {[%clk 0:01:07]}  Bb4 {[%clk 0:00:25]} 30. Bd2 {[%clk 0:01:07]}  Bxd2 {[%clk 0:00:24]} 31. Nxd2 {[%clk 0:01:08]}  Rfc8 {[%clk 0:00:24]} 32. Rec1 {[%clk 0:01:07]}  Rc3 {[%clk 0:00:23]} 33. Ne4 {[%clk 0:01:03]}  Rb3 {[%clk 0:00:19]} 34. Nc5 {[%clk 0:01:02]}  Rb4 {[%clk 0:00:18]} 35. Na6 {[%clk 0:01:02]}  R8xb5 {[%clk 0:00:09]} 36. axb5 {[%clk 0:01:00]}  Rxb5 {[%clk 0:00:07]} 37. Nc7 {[%clk 0:01:00]} 1-0


[Site "https://www.chess.com"]

[Event "Titled Tuesday Blitz August 15 Early 2023"]
[White "Veiga, Jose Francisco R P Neves"]
[Black "Grebeniuk, Semen"]
[WhiteFideId "1930087"]
[BlackFideId "14117509"]
[WhiteElo "2680"]
[BlackElo "2536"]
[Result "1/2-1/2"]
[Round "7"]
[TimeControl "180+1"]
[Date "2023.08.15"]
[WhiteClock "0:00:05"]
[BlackClock "0:00:03"]
[Board "68"]

1. c4 {[%clk 0:02:56]}  f5 {[%clk 0:02:59]} 2. g3 {[%clk 0:02:54]}  Nf6 {[%clk 0:03:00]} 3. Bg2 {[%clk 0:02:55]}  g6 {[%clk 0:03:00]} 4. Nc3 {[%clk 0:02:53]}  Bg7 {[%clk 0:03:01]} 5. d4 {[%clk 0:02:49]}  d6 {[%clk 0:03:01]} 6. Nf3 {[%clk 0:02:49]}  O-O {[%clk 0:03:02]} 7. O-O {[%clk 0:02:50]}  Qe8 {[%clk 0:03:02]} 8. Qc2 {[%clk 0:02:40]}  Nc6 {[%clk 0:02:57]} 9. d5 {[%clk 0:02:35]}  Ne5 {[%clk 0:02:57]} 10. b3 {[%clk 0:02:35]}  Nxf3+ {[%clk 0:02:35]} 11. exf3 {[%clk 0:02:36]}  e5 {[%clk 0:02:18]} 12. dxe6 {[%clk 0:02:37]}  Bxe6 {[%clk 0:02:18]} 13. Re1 {[%clk 0:02:35]}  Qd7 {[%clk 0:02:00]} 14. Bb2 {[%clk 0:02:35]}  Rae8 {[%clk 0:01:59]} 15. f4 {[%clk 0:02:33]}  b6 {[%clk 0:01:46]} 16. Rad1 {[%clk 0:02:28]}  Bf7 {[%clk 0:01:47]} 17. Nd5 {[%clk 0:02:23]}  Bxd5 {[%clk 0:01:39]} 18. cxd5 {[%clk 0:02:22]}  Rxe1+ {[%clk 0:01:36]} 19. Rxe1 {[%clk 0:02:23]}  Re8 {[%clk 0:01:36]} 20. Rc1 {[%clk 0:02:03]}  Re7 {[%clk 0:01:36]} 21. h3 {[%clk 0:02:01]}  Qe8 {[%clk 0:01:36]} 22. Qd2 {[%clk 0:01:48]}  a5 {[%clk 0:01:34]} 23. Bd4 {[%clk 0:01:35]}  Qf7 {[%clk 0:01:13]} 24. Kh2 {[%clk 0:01:26]}  Ne8 {[%clk 0:01:09]} 25. Bxg7 {[%clk 0:01:08]}  Qxg7 {[%clk 0:01:09]} 26. Re1 {[%clk 0:01:09]}  Kf8 {[%clk 0:01:05]} 27. Bf3 {[%clk 0:01:04]}  Rxe1 {[%clk 0:01:04]} 28. Qxe1 {[%clk 0:01:04]}  Qe7 {[%clk 0:01:05]} 29. Qc3 {[%clk 0:01:03]}  Nf6 {[%clk 0:01:06]} 30. Kg2 {[%clk 0:01:02]}  Kg8 {[%clk 0:00:59]} 31. g4 {[%clk 0:01:00]}  fxg4 {[%clk 0:00:56]} 32. hxg4 {[%clk 0:01:01]}  Qf7 {[%clk 0:00:40]} 33. Qc4 {[%clk 0:01:00]}  h6 {[%clk 0:00:31]} 34. a3 {[%clk 0:00:56]}  g5 {[%clk 0:00:27]} 35. fxg5 {[%clk 0:00:55]}  hxg5 {[%clk 0:00:28]} 36. b4 {[%clk 0:00:55]}  axb4 {[%clk 0:00:28]} 37. axb4 {[%clk 0:00:56]}  Qe7 {[%clk 0:00:26]} 38. Kh3 {[%clk 0:00:43]}  Kg7 {[%clk 0:00:20]} 39. Be2 {[%clk 0:00:38]}  Kh6 {[%clk 0:00:20]} 40. Bd3 {[%clk 0:00:34]}  Qf7 {[%clk 0:00:10]} 41. Qd4 {[%clk 0:00:28]}  Qe7 {[%clk 0:00:06]} 42. f4 {[%clk 0:00:19]}  gxf4 {[%clk 0:00:05]} 43. Qxf4+ {[%clk 0:00:20]}  Kg7 {[%clk 0:00:05]} 44. Qf5 {[%clk 0:00:12]}  Qe5 {[%clk 0:00:04]} 45. Qg6+ {[%clk 0:00:12]}  Kf8 {[%clk 0:00:04]} 46. g5 {[%clk 0:00:10]}  Qe3+ {[%clk 0:00:05]} 47. Kg2 {[%clk 0:00:08]}  Qd2+ {[%clk 0:00:04]} 48. Kf3 {[%clk 0:00:08]}  Qd1+ {[%clk 0:00:04]} 49. Kf2 {[%clk 0:00:06]}  Qd2+ {[%clk 0:00:04]} 50. Kf1 {[%clk 0:00:06]}  Qd1+ {[%clk 0:00:04]} 51. Kf2 {[%clk 0:00:07]}  Qd2+ {[%clk 0:00:05]} 52. Kf3 {[%clk 0:00:07]}  Qd1+ {[%clk 0:00:05]} 53. Ke3 {[%clk 0:00:06]}  Qe1+ {[%clk 0:00:03]} 54. Kf3 {[%clk 0:00:05]}  Qd1+ {[%clk 0:00:03]} 1/2-1/2


[Site "https://www.chess.com"]

[Event "Titled Tuesday Blitz August 15 Early 2023"]
[White "Shishkov, Andrei"]
[Black "Maltsevskaya, Aleksandra"]
[WhiteFideId "4500563"]
[BlackFideId "24174041"]
[WhiteElo "2532"]
[BlackElo "2678"]
[Result "1-0"]
[Round "7"]
[TimeControl "180+1"]
[Date "2023.08.15"]
[WhiteClock "0:00:14"]
[BlackClock "0:00:00"]
[Board "69"]

1. d4 {[%clk 0:02:58]}  Nf6 {[%clk 0:02:59]} 2. c4 {[%clk 0:02:58]}  g6 {[%clk 0:02:55]} 3. f3 {[%clk 0:02:57]}  d6 {[%clk 0:02:56]} 4. e4 {[%clk 0:02:57]}  Bg7 {[%clk 0:02:57]} 5. Nc3 {[%clk 0:02:56]}  O-O {[%clk 0:02:58]} 6. Be3 {[%clk 0:02:57]}  Nc6 {[%clk 0:02:58]} 7. Qd2 {[%clk 0:02:57]}  a6 {[%clk 0:02:59]} 8. O-O-O {[%clk 0:02:56]}  b5 {[%clk 0:02:58]} 9. h4 {[%clk 0:02:54]}  bxc4 {[%clk 0:02:59]} 10. h5 {[%clk 0:02:52]}  a5 {[%clk 0:02:53]} 11. hxg6 {[%clk 0:02:41]}  fxg6 {[%clk 0:02:53]} 12. Bxc4+ {[%clk 0:02:33]}  e6 {[%clk 0:02:53]} 13. Bh6 {[%clk 0:02:28]}  a4 {[%clk 0:02:52]} 14. Bxg7 {[%clk 0:02:26]}  Kxg7 {[%clk 0:02:52]} 15. Qh6+ {[%clk 0:02:23]}  Kf7 {[%clk 0:02:47]} 16. e5 {[%clk 0:02:20]}  Ne8 {[%clk 0:02:07]} 17. Nh3 {[%clk 0:02:08]}  Qe7 {[%clk 0:01:35]} 18. Ng5+ {[%clk 0:01:39]}  Kg8 {[%clk 0:01:35]} 19. Nxe6 {[%clk 0:01:28]}  Bxe6 {[%clk 0:01:33]} 20. Bxe6+ {[%clk 0:01:28]}  Kh8 {[%clk 0:01:32]} 21. Bd5 {[%clk 0:01:11]}  Ra6 {[%clk 0:01:25]} 22. Be4 {[%clk 0:01:11]}  dxe5 {[%clk 0:01:13]} 23. Bxg6 {[%clk 0:01:00]}  Nxd4 {[%clk 0:01:10]} 24. Qxh7+ {[%clk 0:00:53]}  Qxh7 {[%clk 0:01:10]} 25. Rxh7+ {[%clk 0:00:54]}  Kg8 {[%clk 0:01:11]} 26. Be4 {[%clk 0:00:52]}  Nf6 {[%clk 0:01:10]} 27. Rxc7 {[%clk 0:00:52]}  a3 {[%clk 0:01:03]} 28. b3 {[%clk 0:00:41]}  Rd8 {[%clk 0:01:00]} 29. Kb1 {[%clk 0:00:39]}  Rb8 {[%clk 0:00:59]} 30. Nd5 {[%clk 0:00:37]}  Nb5 {[%clk 0:00:30]} 31. Rc5 {[%clk 0:00:32]}  Nxe4 {[%clk 0:00:24]} 32. fxe4 {[%clk 0:00:30]}  Rd6 {[%clk 0:00:12]} 33. Rxb5 {[%clk 0:00:27]}  Rxb5 {[%clk 0:00:11]} 34. Ne7+ {[%clk 0:00:27]}  Kf7 {[%clk 0:00:12]} 35. Rxd6 {[%clk 0:00:28]}  Kxe7 {[%clk 0:00:12]} 36. Ra6 {[%clk 0:00:28]}  Rb4 {[%clk 0:00:12]} 37. Rxa3 {[%clk 0:00:28]}  Rxe4 {[%clk 0:00:12]} 38. Ra7+ {[%clk 0:00:26]}  Kd6 {[%clk 0:00:12]} 39. Rg7 {[%clk 0:00:26]}  Re2 {[%clk 0:00:13]} 40. a4 {[%clk 0:00:25]}  Kc5 {[%clk 0:00:12]} 41. a5 {[%clk 0:00:21]}  Kb5 {[%clk 0:00:13]} 42. a6 {[%clk 0:00:18]}  Kxa6 {[%clk 0:00:13]} 43. Kc1 {[%clk 0:00:17]}  Kb5 {[%clk 0:00:13]} 44. Kd1 {[%clk 0:00:17]}  Ra2 {[%clk 0:00:14]} 45. Rg5 {[%clk 0:00:17]}  Kc5 {[%clk 0:00:12]} 46. Rxe5+ {[%clk 0:00:17]}  Kd4 {[%clk 0:00:13]} 47. Re2 {[%clk 0:00:16]}  Ra3 {[%clk 0:00:09]} 48. Ke1 {[%clk 0:00:16]}  Rxb3 {[%clk 0:00:08]} 49. Kf2 {[%clk 0:00:16]}  Rb7 {[%clk 0:00:08]} 50. g4 {[%clk 0:00:15]}  Kd3 {[%clk 0:00:07]} 51. Re8 {[%clk 0:00:15]}  Rb2+ {[%clk 0:00:05]} 52. Kg3 {[%clk 0:00:15]}  Rb1 {[%clk 0:00:06]} 53. Kh4 {[%clk 0:00:14]}  Rh1+ {[%clk 0:00:06]} 54. Kg5 {[%clk 0:00:15]}  Rg1 {[%clk 0:00:07]} 55. Kf5 {[%clk 0:00:15]}  Rf1+ {[%clk 0:00:06]} 56. Kg6 {[%clk 0:00:15]}  Kd4 {[%clk 0:00:07]} 57. g5 {[%clk 0:00:15]}  Kd5 {[%clk 0:00:07]} 58. Kg7 {[%clk 0:00:16]}  Rg1 {[%clk 0:00:07]} 59. g6 {[%clk 0:00:16]}  Kd6 {[%clk 0:00:08]} 60. Kf7 {[%clk 0:00:16]}  Kd7 {[%clk 0:00:08]} 61. Re2 {[%clk 0:00:16]}  Kd6 {[%clk 0:00:08]} 62. g7 {[%clk 0:00:15]}  Rf1+ {[%clk 0:00:08]} 63. Kg8 {[%clk 0:00:15]}  Rg1 {[%clk 0:00:09]} 64. Re8 {[%clk 0:00:14]}  Kd7 {[%clk 0:00:09]} 65. Re5 {[%clk 0:00:13]}  Kd6 {[%clk 0:00:09]} 66. Re4 {[%clk 0:00:13]}  Kd7 {[%clk 0:00:09]} 67. Kf7 {[%clk 0:00:13]}  Rf1+ {[%clk 0:00:00]} 68. Kg6 {[%clk 0:00:14]} 1-0


[Site "https://www.chess.com"]